fUSD/lending_fUSD_20250609
["ID","MTS","AMOUNT","RATE_DAILY","PERIOD"]
[365091769,1749462678187,-480.0,0.00022904,2]
[365091770,1749462678197,-480.0,0.00022904,2]
[365091771,1749462678207,-480.0,0.00022904,2]
[365091772,1749462678216,-480.0,0.00022904,2]
[365091773,1749462678226,-542.89694983,0.00022904,2]
[365091774,1749462678236,-480.0,0.00022904,2]
[365091775,1749462678246,-480.0,0.00022904,2]
[365091776,1749462678256,-480.0,0.00022904,2]
[365091777,1749462678266,-480.0,0.00022904,2]
[365091778,1749462678276,-480.0,0.00022904,2]
[365091779,1749462678286,-349.55814695,0.00022904,2]
[365091780,1749462678296,-480.0,0.00022904,2]
[365091781,1749462678306,-480.0,0.00022904,2]
[365091782,1749462678315,-480.0,0.00022904,2]
[365091783,1749462678325,-674.21,0.00022904,2]
[365091784,1749462678335,-480.0,0.00022904,2]
[365091785,1749462678345,-480.0,0.00022904,2]
[365091786,1749462678355,-222.05,0.00022904,2]
[365091787,1749462678365,-506.1,0.00022904,2]
[365091788,1749462678375,-338.51883787,0.00022904,2]
[365091789,1749462678385,-217.5905826,0.00022904,2]
[365091790,1749462678395,-605.88,0.00022904,2]
[365091791,1749462678404,-480.0,0.00022904,2]
[365091792,1749462678415,-623.62,0.00022904,2]
[365091793,1749462678425,-480.0,0.00022904,2]
[365091794,1749462678436,-480.0,0.00022904,2]
[365091795,1749462678446,-480.0,0.00022904,2]
[365091796,1749462678456,-480.0,0.00022904,2]
[365091797,1749462678466,-480.0,0.00022904,2]
[365091798,1749462678475,-480.0,0.00022904,2]
[365091799,1749462678485,-480.0,0.00022904,2]
[365091800,1749462678494,-588.66,0.00022904,2]
[365091801,1749462678504,-480.0,0.00022904,2]
[365091802,1749462678514,-540.8,0.00022904,2]
[365091803,1749462678524,-659.73,0.00022904,2]
[365091804,1749462678533,-480.0,0.00022904,2]
[365091805,1749462678543,-480.0,0.00022904,2]
[365091806,1749462678554,-480.0,0.00022904,2]
[365091807,1749462678564,-480.0,0.00022904,2]
[365091808,1749462678574,-480.0,0.00022904,2]
[365091809,1749462678583,-480.0,0.00022904,2]
[365091810,1749462678593,-480.0,0.00022904,2]
[365091811,1749462678603,-816.95,0.00022904,2]
[365091812,1749462678612,-414.19016791,0.00022904,2]
[365091813,1749462678623,-655.61,0.00022904,2]
[365091814,1749462678632,-162.22,0.00022904,2]
[365091815,1749462678642,-480.0,0.00022904,2]
[365091816,1749462678651,-601.69,0.00022904,2]
[365091817,1749462678661,-480.0,0.00022904,2]
[365091818,1749462678671,-480.0,0.00022904,2]
[365091819,1749462678680,-480.0,0.00022904,2]
[365091820,1749462678689,-764.59,0.00022904,2]
[365091821,1749462678699,-480.0,0.00022904,2]
[365091822,1749462678710,-491.29,0.00022904,2]
[365091823,1749462678719,-480.0,0.00022904,2]
[365091824,1749462678729,-620.12,0.00022904,2]
[365091825,1749462678739,-480.0,0.00022904,2]
[365091826,1749462678749,-480.0,0.00022904,2]
[365091827,1749462678759,-480.0,0.00022904,2]
[365091828,1749462678770,-480.0,0.00022904,2]
[365091829,1749462678780,-480.0,0.00022904,2]
[365091830,1749462678791,-1664.0,0.00022904,2]
[365091831,1749462678800,-480.0,0.00022904,2]
[365091832,1749462678810,-480.0,0.00022904,2]
[365091833,1749462678820,-876.61,0.00022904,2]
[365091834,1749462678830,-888.29,0.00022904,2]
[365091835,1749462678840,-480.0,0.00022904,2]
[365091836,1749462678850,-480.0,0.00022904,2]
[365091837,1749462678863,-480.0,0.00022904,2]
[365091838,1749462678873,-480.0,0.00022904,2]
[365091839,1749462678883,-480.0,0.00022904,2]
[365091840,1749462679100,-931.85,0.00022904,2]
[365091841,1749462679111,-480.0,0.00022904,2]
[365091842,1749462679122,-480.0,0.00022904,2]
[365091843,1749462679132,-684.56,0.00022904,2]
[365091844,1749462679142,-480.0,0.00022904,2]
[365091845,1749462679152,-480.0,0.00022904,2]
[365091846,1749462679162,-480.0,0.00022904,2]
[365091847,1749462679172,-480.0,0.00022904,2]
[365091848,1749462679182,-14348.57,0.00022904,2]
[365091849,1749462679192,-1514.28,0.00022904,2]
[365091850,1749462679202,-480.0,0.00022904,2]
[365091851,1749462679212,-480.0,0.00022904,2]
[365091852,1749462679222,-480.0,0.00022904,2]
[365091853,1749462679232,-1188.61,0.00022904,2]
[365091854,1749462679242,-687.61,0.00022904,2]
[365091855,1749462679251,-480.0,0.00022904,2]
[365091856,1749462679263,-480.0,0.00022904,2]
[365091857,1749462679273,-480.0,0.00022904,2]
[365091858,1749462679283,-480.0,0.00022904,2]
[365091859,1749462679293,-10581.38,0.00022904,2]
[365091860,1749462679304,-574.55,0.00022904,2]
[365091861,1749462679314,-596.16,0.00022904,2]
[365091862,1749462679324,-480.0,0.00022904,2]
[365091863,1749462679334,-493.56,0.00022904,2]
[365091864,1749462679344,-480.0,0.00022904,2]
[365091865,1749462679354,-480.0,0.00022904,2]
[365091866,1749462679363,-480.0,0.00022904,2]
[365091867,1749462679373,-529.71,0.00022904,2]
[365091868,1749462679382,-480.0,0.00022904,2]
[365091869,1749462679392,-576.66,0.00022904,2]
[365091870,1749462679400,-480.0,0.00022904,2]
[365091871,1749462679408,-480.0,0.00022904,2]
[365091872,1749462679417,-619.44,0.00022904,2]
[365091873,1749462679426,-480.0,0.00022904,2]
[365091874,1749462679434,-480.0,0.00022904,2]
[365091875,1749462679443,-480.0,0.00022904,2]
[365091876,1749462679451,-480.0,0.00022904,2]
[365091877,1749462679460,-8574.09,0.00022904,2]
[365091878,1749462679469,-480.0,0.00022904,2]
[365091879,1749462679477,-1513.29,0.00022904,2]
[365091880,1749462679487,-480.0,0.00022904,2]
[365091881,1749462679496,-552.51,0.00022904,2]
[365091882,1749462679505,-622.75,0.00022904,2]
[365091883,1749462679514,-480.0,0.00022904,2]
[365091884,1749462679524,-480.0,0.00022904,2]
[365091885,1749462679534,-480.0,0.00022904,2]
[365091886,1749462679543,-480.0,0.00022904,2]
[365091887,1749462679553,-150.0,0.00022993,120]
[365091888,1749462679562,-6645.34868246,0.00023,60]
[365091889,1749462679571,-292.6370141,0.00023,7]
[365091890,1749462679581,-14182.32591334,0.00023,15]
[365091891,1749462679590,-2110.0,0.00023,2]
[365091892,1749462679600,-4000.0,0.00023,7]
[365091893,1749462679611,-240.0,0.00023,7]
[365091894,1749462679620,-383.0,0.00023,7]
[365091895,1749462679631,-4000.0,0.00023,4]
[365091896,1749462679640,-1000.0,0.00023014,2]
[365091897,1749462679650,-194.72792766,0.00023014,2]
[365091898,1749462679659,-480.0,0.00023068,2]
[365091899,1749462679668,-1281.25,0.00023068,2]
[365091900,1749462679677,-480.0,0.00023068,2]
[365091901,1749462679687,-532.39234744,0.00023068,2]
[365091902,1749462679696,-480.0,0.00023068,2]
[365091903,1749462679705,-480.0,0.00023068,2]
[365091904,1749462679714,-480.0,0.00023068,2]
[365091905,1749462679723,-480.0,0.00023068,2]
[365091906,1749462679732,-480.0,0.00023068,2]
[365091907,1749462679742,-480.0,0.00023068,2]
[365091908,1749462679751,-480.0,0.00023068,2]
[365091909,1749462679762,-480.0,0.00023068,2]
[365091910,1749462679772,-480.0,0.00023068,2]
[365091911,1749462679782,-480.0,0.00023068,2]
[365091912,1749462679793,-632.38,0.00023068,2]
[365091913,1749462679803,-480.0,0.00023068,2]
[365091914,1749462679813,-621.28,0.00023068,2]
[365091915,1749462679823,-480.0,0.00023068,2]
[365091916,1749462679833,-480.0,0.00023068,2]
[365091917,1749462679843,-480.0,0.00023068,2]
[365091918,1749462679853,-480.0,0.00023068,2]
[365091919,1749462679865,-480.0,0.00023068,2]
[365091920,1749462679875,-608.47,0.00023068,2]
[365091921,1749462679887,-480.0,0.00023068,2]
[365091922,1749462679896,-480.0,0.00023068,2]
[365091923,1749462679906,-480.0,0.00023068,2]
[365091924,1749462679915,-480.0,0.00023068,2]
[365091925,1749462679924,-480.0,0.00023068,2]
[365091926,1749462679934,-480.0,0.00023068,2]
[365091927,1749462679944,-480.0,0.00023068,2]
[365091928,1749462679954,-480.0,0.00023068,2]
[365091929,1749462679964,-398.04033964,0.00023068,2]
[365091930,1749462679973,-480.0,0.00023068,2]
[365091931,1749462679982,-480.0,0.00023068,2]
[365091932,1749462679992,-480.0,0.00023068,2]
[365091933,1749462680001,-930.22,0.00023068,2]
[365091934,1749462680011,-772.31,0.00023068,2]
[365091935,1749462680021,-480.0,0.00023068,2]
[365091936,1749462680031,-480.0,0.00023068,2]
[365091937,1749462680040,-480.0,0.00023068,2]
[365091938,1749462680049,-720.88,0.00023068,2]
[365091939,1749462680059,-480.0,0.00023068,2]
[365091940,1749462680068,-480.0,0.00023068,2]
[365091941,1749462680077,-505.43,0.00023068,2]
[365091942,1749462680087,-480.0,0.00023068,2]
[365091943,1749462680096,-934.6,0.00023068,2]
[365091944,1749462680106,-480.0,0.00023068,2]
[365091945,1749462680115,-580.81,0.00023068,2]
[365091946,1749462680125,-520.2,0.00023068,2]
[365091947,1749462680134,-480.0,0.00023068,2]
[365091948,1749462680143,-480.0,0.00023068,2]
[365091949,1749462680152,-480.0,0.00023068,2]
[365091950,1749462680162,-490.09,0.00023068,2]
[365091951,1749462680172,-480.0,0.00023068,2]
[365091952,1749462680182,-480.0,0.00023068,2]
[365091953,1749462680191,-480.0,0.00023068,2]
[365091954,1749462680201,-480.0,0.00023068,2]
[365091955,1749462680211,-512.62,0.00023068,2]
[365091956,1749462680221,-678.5,0.00023068,2]
[365091957,1749462680230,-480.0,0.00023068,2]
[365091958,1749462680239,-209.34011487,0.00023068,2]
[365091959,1749462680248,-783.56,0.00023068,2]
[365091960,1749462680259,-480.0,0.00023068,2]
[365091961,1749462680268,-480.0,0.00023068,2]
[365091962,1749462680277,-500.0,0.00023068,2]
[365091963,1749462680287,-480.0,0.00023068,2]
[365091964,1749462680297,-480.0,0.00023068,2]
[365091965,1749462680422,-480.0,0.00023068,2]
[365091966,1749462680431,-480.0,0.00023068,2]
[365091967,1749462680441,-480.0,0.00023068,2]
[365091968,1749462680450,-678.44,0.00023068,2]
[365091969,1749462680460,-480.0,0.00023068,2]
[365091970,1749462680469,-480.0,0.00023068,2]
[365091971,1749462680478,-480.0,0.00023068,2]
[365091972,1749462680488,-480.0,0.00023068,2]
[365091973,1749462680497,-480.0,0.00023068,2]
[365091974,1749462680507,-480.0,0.00023068,2]
[365091975,1749462680517,-480.0,0.00023068,2]
[365091976,1749462680526,-480.0,0.00023068,2]
[365091977,1749462680535,-480.0,0.00023068,2]
[365091978,1749462680545,-480.0,0.00023068,2]
[365091979,1749462680555,-480.0,0.00023068,2]
[365091980,1749462680564,-480.0,0.00023068,2]
[365091981,1749462680574,-480.0,0.00023068,2]
[365091982,1749462680583,-480.0,0.00023068,2]
[365091983,1749462680592,-480.0,0.00023068,2]
[365091984,1749462680602,-480.0,0.00023068,2]
[365091985,1749462680611,-480.0,0.00023068,2]
[365091986,1749462680621,-480.0,0.00023068,2]
[365091987,1749462680631,-480.0,0.00023068,2]
[365091988,1749462680640,-480.0,0.00023068,2]
[365091989,1749462680649,-603.01,0.00023068,2]
[365091990,1749462680659,-480.0,0.00023068,2]
[365091991,1749462680668,-480.0,0.00023068,2]
[365091992,1749462680678,-848.5,0.00023068,2]
[365091993,1749462680687,-480.0,0.00023068,2]
[365091994,1749462680697,-480.0,0.00023068,2]
[365091995,1749462680706,-480.0,0.00023068,2]
[365091996,1749462680715,-480.0,0.00023068,2]
[365091997,1749462680724,-480.0,0.00023068,2]
[365091998,1749462680733,-480.0,0.00023068,2]
[365091999,1749462680742,-480.0,0.00023068,2]
[365092000,1749462680752,-480.0,0.00023068,2]
[365092001,1749462680763,-366.05722299,0.00023068,2]
[365092002,1749462680772,-480.0,0.00023068,2]
[365092003,1749462680781,-480.0,0.00023068,2]
[365092004,1749462680791,-480.0,0.00023068,2]
[365092005,1749462680800,-480.0,0.00023068,2]
[365092006,1749462680809,-480.0,0.00023068,2]
[365092007,1749462680819,-480.0,0.00023068,2]
[365092008,1749462680829,-480.0,0.00023068,2]
[365092009,1749462680839,-580.02815717,0.00023068,2]
[365092010,1749462680849,-480.0,0.00023068,2]
[365092011,1749462680861,-480.0,0.00023068,2]
[365092012,1749462680870,-480.0,0.00023068,2]
[365092013,1749462680880,-483.13,0.00023068,2]
[365092014,1749462680889,-674.21,0.00023068,2]
[365092015,1749462680899,-480.0,0.00023068,2]
[365092016,1749462680909,-480.0,0.00023068,2]
[365092017,1749462680919,-506.1,0.00023068,2]
[365092018,1749462680928,-605.88,0.00023068,2]
[365092019,1749462680937,-480.0,0.00023068,2]
[365092020,1749462680947,-623.62,0.00023068,2]
[365092021,1749462680956,-480.0,0.00023068,2]
[365092022,1749462680965,-480.0,0.00023068,2]
[365092023,1749462680974,-480.0,0.00023068,2]
[365092024,1749462680983,-480.0,0.00023068,2]
[365092025,1749462680993,-240.35630932,0.00023068,2]
[365092026,1749462681002,-480.0,0.00023068,2]
[365092027,1749462681012,-480.0,0.00023068,2]
[365092028,1749462681021,-588.66,0.00023068,2]
[365092029,1749462681031,-480.0,0.00023068,2]
[365092030,1749462681040,-540.8,0.00023068,2]
[365092031,1749462681049,-659.73,0.00023068,2]
[365092032,1749462681059,-480.0,0.00023068,2]
[365092033,1749462681069,-480.0,0.00023068,2]
[365092034,1749462681079,-480.0,0.00023068,2]
[365092035,1749462681089,-480.0,0.00023068,2]
[365092036,1749462681098,-559.35173638,0.00023068,2]
[365092037,1749462681108,-480.0,0.00023068,2]
[365092038,1749462681118,-480.0,0.00023068,2]
[365092039,1749462681127,-816.95,0.00023068,2]
[365092040,1749462681139,-655.61,0.00023068,2]
[365092041,1749462681148,-480.0,0.00023068,2]
[365092042,1749462681158,-601.69,0.00023068,2]
[365092043,1749462681168,-480.0,0.00023068,2]
[365092044,1749462681177,-480.0,0.00023068,2]
[365092045,1749462681187,-480.0,0.00023068,2]
[365092046,1749462681196,-764.59,0.00023068,2]
[365092047,1749462681205,-240.95201194,0.00023068,2]
[365092048,1749462681215,-491.29,0.00023068,2]
[365092049,1749462681224,-173.10748287,0.00023068,2]
[365092050,1749462681234,-620.12,0.00023068,2]
[365092051,1749462681243,-480.0,0.00023068,2]
[365092052,1749462681253,-397.60713539,0.00023068,2]
[365092053,1749462681264,-480.0,0.00023068,2]
[365092054,1749462681274,-480.0,0.00023068,2]
[365092055,1749462681283,-480.0,0.00023068,2]
[365092056,1749462681293,-1664.0,0.00023068,2]
[365092057,1749462681302,-480.0,0.00023068,2]
[365092058,1749462681312,-480.0,0.00023068,2]
[365092059,1749462681322,-876.61,0.00023068,2]
[365092060,1749462681331,-888.29,0.00023068,2]
[365092061,1749462681341,-480.0,0.00023068,2]
[365092062,1749462681351,-480.0,0.00023068,2]
[365092063,1749462681360,-525.13,0.00023068,2]
[365092064,1749462681370,-480.0,0.00023068,2]
[365092065,1749462681380,-480.0,0.00023068,2]
[365092066,1749462681389,-931.85,0.00023068,2]
[365092067,1749462681399,-480.0,0.00023068,2]
[365092068,1749462681408,-480.0,0.00023068,2]
[365092069,1749462681418,-684.56,0.00023068,2]
[365092070,1749462681428,-480.0,0.00023068,2]
[365092071,1749462681438,-480.0,0.00023068,2]
[365092072,1749462681447,-480.0,0.00023068,2]
[365092073,1749462681457,-480.0,0.00023068,2]
[365092074,1749462681467,-14348.57,0.00023068,2]
[365092075,1749462681476,-1514.28,0.00023068,2]
[365092076,1749462681486,-480.0,0.00023068,2]
[365092077,1749462681495,-480.0,0.00023068,2]
[365092078,1749462681505,-480.0,0.00023068,2]
[365092079,1749462681515,-1188.61,0.00023068,2]
[365092080,1749462681525,-687.61,0.00023068,2]
[365092081,1749462681534,-480.0,0.00023068,2]
[365092082,1749462681543,-480.0,0.00023068,2]
[365092083,1749462681552,-480.0,0.00023068,2]
[365092084,1749462681562,-480.0,0.00023068,2]
[365092085,1749462681571,-10581.38,0.00023068,2]
[365092086,1749462681581,-574.55,0.00023068,2]
[365092087,1749462681590,-596.16,0.00023068,2]
[365092088,1749462681600,-480.0,0.00023068,2]
[365092089,1749462681609,-493.56,0.00023068,2]
[365092090,1749462681619,-480.0,0.00023068,2]
[365092091,1749462681628,-480.0,0.00023068,2]
[365092092,1749462681639,-480.0,0.00023068,2]
[365092093,1749462681649,-529.71,0.00023068,2]
[365092094,1749462681658,-480.0,0.00023068,2]
[365092095,1749462681667,-576.66,0.00023068,2]
[365092096,1749462681677,-480.0,0.00023068,2]
[365092097,1749462681687,-480.0,0.00023068,2]
[365092098,1749462681696,-619.44,0.00023068,2]
[365092099,1749462681706,-480.0,0.00023068,2]
[365092100,1749462681716,-480.0,0.00023068,2]
[365092101,1749462681726,-480.0,0.00023068,2]
[365092102,1749462681735,-8574.09,0.00023068,2]
[365092103,1749462681745,-480.0,0.00023068,2]
[365092104,1749462681754,-480.0,0.00023068,2]
[365092105,1749462681765,-1513.29,0.00023068,2]
[365092106,1749462681774,-480.0,0.00023068,2]
[365092107,1749462681784,-552.51,0.00023068,2]
[365092108,1749462681793,-622.75,0.00023068,2]
[365092109,1749462681802,-480.0,0.00023068,2]
[365092110,1749462681811,-480.0,0.00023068,2]
[365092111,1749462681821,-480.0,0.00023068,2]
[365092112,1749462681830,-534.94737707,0.00023068,2]
[365092113,1749462681841,-200.0,0.000231,7]
[365092114,1749462681850,-823.0,0.00023145,2]
[365092115,1749462681863,-50634.49264025,0.000232,2]
[365092116,1749462681872,-346.28,0.000232,14]
[365092117,1749462681881,-223.07,0.00023206,2]
[365092118,1749462681896,-480.0,0.00023232,2]
[365092119,1749462681906,-1281.25,0.00023232,2]
[365092120,1749462681917,-480.0,0.00023232,2]
[365092121,1749462681927,-480.0,0.00023232,2]
[365092122,1749462681938,-480.0,0.00023232,2]
[365092123,1749462681948,-480.0,0.00023232,2]
[365092124,1749462681957,-480.0,0.00023232,2]
[365092125,1749462681967,-480.0,0.00023232,2]
[365092126,1749462681977,-480.0,0.00023232,2]
[365092127,1749462681987,-480.0,0.00023232,2]
[365092128,1749462681996,-480.0,0.00023232,2]
[365092129,1749462682006,-480.0,0.00023232,2]
[365092130,1749462682020,-480.0,0.00023232,2]
[365092131,1749462682032,-632.38,0.00023232,2]
[365092132,1749462682041,-480.0,0.00023232,2]
[365092133,1749462682051,-621.28,0.00023232,2]
[365092134,1749462682060,-480.0,0.00023232,2]
[365092135,1749462682069,-480.0,0.00023232,2]
[365092136,1749462682079,-480.0,0.00023232,2]
[365092137,1749462682088,-480.0,0.00023232,2]
[365092138,1749462682098,-480.0,0.00023232,2]
[365092139,1749462682108,-608.47,0.00023232,2]
[365092140,1749462682118,-480.0,0.00023232,2]
[365092141,1749462682127,-480.0,0.00023232,2]
[365092142,1749462682137,-480.0,0.00023232,2]
[365092143,1749462682146,-480.0,0.00023232,2]
[365092144,1749462682156,-480.0,0.00023232,2]
[365092145,1749462682165,-480.0,0.00023232,2]
[365092146,1749462682175,-480.0,0.00023232,2]
[365092147,1749462682185,-480.0,0.00023232,2]
[365092148,1749462682194,-480.0,0.00023232,2]
[365092149,1749462682203,-480.0,0.00023232,2]
[365092150,1749462682214,-480.0,0.00023232,2]
[365092151,1749462682224,-930.22,0.00023232,2]
[365092152,1749462682234,-772.31,0.00023232,2]
[365092153,1749462682243,-480.0,0.00023232,2]
[365092154,1749462682253,-480.0,0.00023232,2]
[365092155,1749462682375,-480.0,0.00023232,2]
[365092156,1749462682387,-720.88,0.00023232,2]
[365092157,1749462682397,-480.0,0.00023232,2]
[365092158,1749462682407,-480.0,0.00023232,2]
[365092159,1749462682417,-505.43,0.00023232,2]
[365092160,1749462682427,-480.0,0.00023232,2]
[365092161,1749462682436,-934.6,0.00023232,2]
[365092162,1749462682446,-480.0,0.00023232,2]
[365092163,1749462682457,-580.81,0.00023232,2]
[365092164,1749462682468,-520.2,0.00023232,2]
[365092165,1749462682477,-480.0,0.00023232,2]
[365092166,1749462682488,-480.0,0.00023232,2]
[365092167,1749462682497,-480.0,0.00023232,2]
[365092168,1749462682507,-490.09,0.00023232,2]
[365092169,1749462682518,-480.0,0.00023232,2]
[365092170,1749462682527,-480.0,0.00023232,2]
[365092171,1749462682536,-480.0,0.00023232,2]
[365092172,1749462682546,-480.0,0.00023232,2]
[365092173,1749462682556,-512.62,0.00023232,2]
[365092174,1749462682565,-678.5,0.00023232,2]
[365092175,1749462682574,-363.99113715,0.00023232,2]
[365092176,1749462682583,-783.56,0.00023232,2]
[365092177,1749462682593,-480.0,0.00023232,2]
[365092178,1749462682602,-480.0,0.00023232,2]
[365092179,1749462682612,-500.0,0.00023232,2]
[365092180,1749462682621,-480.0,0.00023232,2]
[365092181,1749462682631,-480.0,0.00023232,2]
[365092182,1749462682640,-263.93931773,0.00023232,2]
[365092183,1749462682650,-480.0,0.00023232,2]
[365092184,1749462682660,-480.0,0.00023232,2]
[365092185,1749462682669,-678.44,0.00023232,2]
[365092186,1749462682679,-480.0,0.00023232,2]
[365092187,1749462682688,-480.0,0.00023232,2]
[365092188,1749462682697,-480.0,0.00023232,2]
[365092189,1749462682706,-480.0,0.00023232,2]
[365092190,1749462682716,-480.0,0.00023232,2]
[365092191,1749462682725,-480.0,0.00023232,2]
[365092192,1749462682735,-480.0,0.00023232,2]
[365092193,1749462682744,-210.63959283,0.00023232,2]
[365092194,1749462682753,-480.0,0.00023232,2]
[365092195,1749462682764,-480.0,0.00023232,2]
[365092196,1749462682774,-480.0,0.00023232,2]
[365092197,1749462682783,-480.0,0.00023232,2]
[365092198,1749462682792,-480.0,0.00023232,2]
[365092199,1749462682801,-480.0,0.00023232,2]
[365092200,1749462682811,-480.0,0.00023232,2]
[365092201,1749462682820,-480.0,0.00023232,2]
[365092202,1749462682830,-480.0,0.00023232,2]
[365092203,1749462682841,-617.30165967,0.00023232,2]
[365092204,1749462682853,-480.0,0.00023232,2]
[365092205,1749462682863,-480.0,0.00023232,2]
[365092206,1749462682872,-603.01,0.00023232,2]
[365092207,1749462682882,-480.0,0.00023232,2]
[365092208,1749462682891,-480.0,0.00023232,2]
[365092209,1749462682900,-848.5,0.00023232,2]
[365092210,1749462682910,-567.2,0.00023232,2]
[365092211,1749462682919,-480.0,0.00023232,2]
[365092212,1749462682929,-480.0,0.00023232,2]
[365092213,1749462682938,-480.0,0.00023232,2]
[365092214,1749462682949,-480.0,0.00023232,2]
[365092215,1749462682959,-480.0,0.00023232,2]
[365092216,1749462682969,-480.0,0.00023232,2]
[365092217,1749462682978,-480.0,0.00023232,2]
[365092218,1749462682988,-480.0,0.00023232,2]
[365092219,1749462682998,-480.0,0.00023232,2]
[365092220,1749462683007,-480.0,0.00023232,2]
[365092221,1749462683018,-480.0,0.00023232,2]
[365092222,1749462683027,-254.4576405,0.00023232,2]
[365092223,1749462683037,-480.0,0.00023232,2]
[365092224,1749462683046,-480.0,0.00023232,2]
[365092225,1749462683056,-480.0,0.00023232,2]
[365092226,1749462683065,-480.0,0.00023232,2]
[365092227,1749462683075,-674.21,0.00023232,2]
[365092228,1749462683085,-598.71152314,0.00023232,2]
[365092229,1749462683095,-480.0,0.00023232,2]
[365092230,1749462683104,-506.1,0.00023232,2]
[365092231,1749462683114,-605.88,0.00023232,2]
[365092232,1749462683123,-480.0,0.00023232,2]
[365092233,1749462683133,-480.0,0.00023232,2]
[365092234,1749462683143,-623.62,0.00023232,2]
[365092235,1749462683152,-480.0,0.00023232,2]
[365092236,1749462683161,-480.0,0.00023232,2]
[365092237,1749462683171,-480.0,0.00023232,2]
[365092238,1749462683180,-480.0,0.00023232,2]
[365092239,1749462683189,-480.0,0.00023232,2]
[365092240,1749462683199,-480.0,0.00023232,2]
[365092241,1749462683208,-588.66,0.00023232,2]
[365092242,1749462683218,-480.0,0.00023232,2]
[365092243,1749462683227,-540.8,0.00023232,2]
[365092244,1749462683237,-659.73,0.00023232,2]
[365092245,1749462683247,-480.0,0.00023232,2]
[365092246,1749462683257,-480.0,0.00023232,2]
[365092247,1749462683268,-480.0,0.00023232,2]
[365092248,1749462683279,-488.93235142,0.00023232,2]
[365092249,1749462683288,-505.16230372,0.00023232,2]
[365092250,1749462683298,-816.95,0.00023232,2]
[365092251,1749462683308,-480.0,0.00023232,2]
[365092252,1749462683318,-655.61,0.00023232,2]
[365092253,1749462683328,-480.0,0.00023232,2]
[365092254,1749462683338,-601.69,0.00023232,2]
[365092255,1749462683348,-480.0,0.00023232,2]
[365092256,1749462683358,-309.90082277,0.00023232,2]
[365092257,1749462683367,-480.0,0.00023232,2]
[365092258,1749462683377,-764.59,0.00023232,2]
[365092259,1749462683387,-491.29,0.00023232,2]
[365092260,1749462683396,-620.12,0.00023232,2]
[365092261,1749462683407,-225.48,0.00023232,2]
[365092262,1749462683418,-480.0,0.00023232,2]
[365092263,1749462683429,-480.0,0.00023232,2]
[365092264,1749462683439,-415.82,0.00023232,2]
[365092265,1749462683450,-1664.0,0.00023232,2]
[365092266,1749462683459,-480.0,0.00023232,2]
[365092267,1749462683468,-450.89,0.00023232,2]
[365092268,1749462683478,-876.61,0.00023232,2]